bitfinex/quotes_BTCUSD_20241226
["timestamp","ask_amount","ask_price","bid_price","bid_amount"]
[1735198447454,0.00115529,97819.0,97818.0,0.51968937]
[1735198447690,0.00115529,97819.0,97818.0,0.51468937]
[1735198447897,0.00215529,97819.0,97818.0,0.51168937]
[1735198448107,0.00315529,97819.0,97818.0,0.52068937]
[1735198448288,0.00115529,97819.0,97818.0,0.51168937]
[1735198448520,0.00015529,97819.0,97818.0,0.50568937]
[1735198448728,0.00215529,97819.0,97818.0,0.52068937]
[1735198449528,0.00215529,97819.0,97818.0,0.52453392]
[1735198451392,0.00215529,97819.0,97818.0,0.44639745]
[1735198451835,0.00215529,97819.0,97818.0,0.29639745]
[1735198452254,0.00215529,97819.0,97818.0,0.28639987]
[1735198453522,0.00115529,97819.0,97818.0,0.28039987]
[1735198453728,0.00215529,97819.0,97818.0,0.28639987]
[1735198453967,0.00115529,97819.0,97818.0,0.27739987]
[1735198454143,0.00215529,97819.0,97818.0,0.28539987]
[1735198454360,0.00115529,97819.0,97818.0,0.27139987]
[1735198454568,0.00115529,97819.0,97818.0,0.27439987]
[1735198454774,0.00215529,97819.0,97818.0,0.28139987]
[1735198455026,0.00115529,97819.0,97818.0,0.17041355]
[1735198455237,0.00115529,97819.0,97818.0,0.17741355]
[1735198455444,0.00215529,97819.0,97818.0,0.17741355]
[1735198455686,0.00115529,97819.0,97818.0,0.17041355]
[1735198455895,0.00215529,97819.0,97818.0,0.17341355]
[1735198456210,0.00215529,97819.0,97818.0,0.17641355]
[1735198456641,0.00215529,97819.0,97818.0,0.17341355]
[1735198456872,0.00115529,97819.0,97818.0,0.17641355]
[1735198457125,0.00015529,97819.0,97818.0,0.17041355]
[1735198457299,0.00115529,97819.0,97818.0,0.17641355]
[1735198457517,0.00115529,97819.0,97818.0,0.16741355]
[1735198457718,0.00115529,97819.0,97818.0,0.16941355]
[1735198457921,0.00115529,97819.0,97818.0,0.17441355]
[1735198458116,0.00015529,97819.0,97818.0,0.16941355]
[1735198458575,0.00015529,97819.0,97818.0,0.17441355]
[1735198458782,0.00015529,97819.0,97818.0,0.16941355]
[1735198458934,0.00015529,97819.0,97818.0,0.16741355]
[1735198459362,0.00015529,97819.0,97818.0,0.16941355]
[1735198459588,0.00015529,97819.0,97818.0,0.1691429]
[1735198459797,0.00015529,97819.0,97818.0,0.1671429]
[1735198461739,0.00015529,97819.0,97818.0,0.16778664]
[1735198462094,0.00015529,97819.0,97818.0,0.16978664]
[1735198463298,0.00015529,97819.0,97818.0,0.16778664]
[1735198463507,0.00015529,97819.0,97818.0,0.16978664]
[1735198464229,0.00015529,97819.0,97818.0,0.00584455]
[1735198465664,0.00015529,97819.0,97818.0,0.01199365]
[1735198466505,0.07161882,97819.0,97818.0,0.01199365]
[1735198466656,0.07161882,97819.0,97818.0,0.00584455]
[1735198467290,0.07161882,97819.0,97818.0,0.01199365]
[1735198468636,0.00015529,97819.0,97818.0,0.01199365]
[1735198468812,0.00015529,97819.0,97818.0,0.26662399]
[1735198469048,0.00015529,97819.0,97818.0,0.29451644]
[1735198469813,0.00015529,97819.0,97818.0,0.29251644]
[1735198470074,0.00015529,97819.0,97818.0,0.29751644]
[1735198470275,0.00090092,97819.0,97818.0,0.30651644]
[1735198470451,9.2e-07,97819.0,97818.0,0.30651644]
[1735198470651,0.0001716,97838.0,97826.0,0.15]
[1735198470864,0.0001716,97838.0,97827.0,0.10276078]
[1735198471062,0.0001716,97838.0,97830.0,0.163549]
[1735198471239,0.0001716,97838.0,97830.0,0.26632439]
[1735198471605,0.0001716,97838.0,97830.0,0.26568127]
[1735198471812,0.0011716,97831.0,97830.0,0.26568127]
[1735198473343,0.0011716,97831.0,97830.0,0.26768127]
[1735198473551,0.0001716,97831.0,97830.0,0.26768127]
[1735198473790,0.0011716,97831.0,97830.0,0.27368127]
[1735198475539,0.0011716,97831.0,97830.0,0.171549]
[1735198475756,0.0011716,97831.0,97830.0,0.17219239]
[1735198476710,0.0011716,97831.0,97830.0,0.17019239]
[1735198476907,0.0001716,97831.0,97830.0,0.16419239]
[1735198477207,0.0011716,97831.0,97830.0,0.16919239]
[1735198477413,0.0021716,97831.0,97830.0,0.17819239]
[1735198477631,0.0021716,97831.0,97830.0,0.16919239]
[1735198477787,0.0031716,97831.0,97830.0,0.17719239]
[1735198478173,0.0031716,97831.0,97830.0,0.17219239]
[1735198478375,0.0021716,97831.0,97830.0,0.17219239]
[1735198478589,0.0021716,97831.0,97830.0,0.17619239]
[1735198478790,0.0021716,97831.0,97830.0,0.28017871]
[1735198478991,0.0021716,97831.0,97830.0,0.27953532]
[1735198479484,0.0021716,97831.0,97830.0,0.012]
[1735198479697,0.0021716,97831.0,97830.0,0.175549]
[1735198479907,0.0021716,97831.0,97830.0,0.012]
[1735198480171,0.1309716,97831.0,97830.0,0.012]
[1735198480581,0.1289716,97831.0,97830.0,0.004]
[1735198480991,0.1299716,97831.0,97830.0,0.012]
[1735198481109,0.1289716,97831.0,97830.0,0.004]
[1735198481305,0.1289716,97831.0,97830.0,0.006]
[1735198481536,0.1289716,97831.0,97830.0,0.002]
[1735198482313,0.1289716,97831.0,97830.0,0.004]
[1735198482948,0.1289716,97831.0,97826.0,0.00051817]
[1735198483159,0.1289716,97831.0,97830.0,0.00384946]
[1735198483971,0.1289716,97831.0,97830.0,0.00484946]
[1735198484174,0.2289716,97831.0,97830.0,0.00484946]
[1735198484384,0.6425186,97831.0,97830.0,0.00384946]
[1735198484826,0.74750492,97831.0,97830.0,0.00384946]
[1735198484961,0.66670492,97831.0,97826.0,0.00051817]
[1735198485211,0.1,97827.0,97826.0,0.00051817]
[1735198485416,0.18047785,97827.0,97826.0,0.00051817]
[1735198485822,0.0792,97827.0,97826.0,0.00051817]
[1735198486798,0.0792,97827.0,97826.0,0.00435717]
[1735198487892,0.1792,97827.0,97826.0,0.00435717]
[1735198488058,0.1802,97827.0,97826.0,0.00435717]
[1735198488471,0.1802,97827.0,97826.0,0.00535717]
[1735198488780,0.1803714,97827.0,97826.0,0.00435717]
[1735198488975,0.0803714,97827.0,97826.0,0.00051817]
[1735198489171,0.0793714,97827.0,97826.0,0.00051817]
[1735198489372,0.0803714,97827.0,97826.0,0.00051817]
[1735198489613,0.1803714,97827.0,97826.0,0.00051817]
[1735198489769,0.0813714,97827.0,97826.0,0.00051817]
[1735198489976,0.1813714,97827.0,97826.0,0.00051817]
[1735198490364,0.1813714,97827.0,97826.0,0.00435718]
[1735198490603,0.1803714,97827.0,97826.0,0.00435718]
[1735198490890,0.1833714,97827.0,97826.0,0.00051817]
[1735198491096,0.1823714,97827.0,97826.0,0.00051817]
[1735198491645,0.1873714,97827.0,97826.0,0.00051817]
[1735198491770,0.1853714,97827.0,97826.0,0.00051817]
[1735198492174,0.1813714,97827.0,97826.0,0.00435687]
[1735198492614,0.1823714,97827.0,97826.0,0.00435687]
[1735198493028,0.1843714,97827.0,97826.0,0.00435687]
[1735198494482,0.1843714,97827.0,97826.0,0.00051817]
[1735198494866,0.18564919,97827.0,97826.0,0.00051817]
[1735198495918,0.0051714,97827.0,97826.0,0.00051817]
[1735198496121,0.0051714,97827.0,97826.0,0.10514786]
[1735198496327,0.0051714,97827.0,97826.0,0.10898715]
[1735198496866,0.0021714,97827.0,97826.0,0.10898715]
[1735198497069,0.0021714,97827.0,97826.0,0.11398715]
[1735198497290,0.0001714,97827.0,97826.0,0.11398715]
[1735198497506,0.0001714,97827.0,97826.0,0.00500083]
[1735198497705,0.0001714,97827.0,97826.0,0.01200083]
[1735198498055,0.0001714,97827.0,97826.0,0.01000083]
[1735198498461,0.0001714,97827.0,97826.0,0.11098715]
[1735198498866,0.0011714,97827.0,97826.0,0.11598715]
[1735198499156,0.0011714,97827.0,97826.0,0.11998715]
[1735198499799,4e-07,97827.0,97826.0,0.11998715]
[1735198500004,1e-06,97831.0,97827.0,0.327108]
[1735198500206,1e-06,97831.0,97830.0,0.25398632]
[1735198501666,1e-06,97831.0,97830.0,0.26298632]
[1735198502280,0.0001716,97838.0,97837.0,0.313537]
[1735198502483,0.0001716,97838.0,97837.0,0.41752332]
[1735198502687,0.0001716,97838.0,97837.0,0.26752332]
[1735198503125,0.0001716,97838.0,97837.0,0.27136222]
[1735198503698,0.0011716,97838.0,97837.0,0.28036222]
[1735198504262,0.0011716,97838.0,97837.0,0.28536222]
[1735198506197,0.0011716,97838.0,97837.0,0.1813759]
[1735198508195,0.0011716,97838.0,97837.0,0.0178389]
[1735198508465,0.0001716,97838.0,97837.0,0.0038389]
[1735198508669,0.0001716,97838.0,97837.0,0.0118389]
[1735198508670,0.1011716,97838.0,97837.0,0.0118389]
[1735198509095,0.2011716,97838.0,97837.0,0.0118389]
[1735198509654,0.2011716,97838.0,97837.0,0.008]
[1735198510051,0.2011716,97838.0,97837.0,0.006]
[1735198510464,0.1,97831.0,97828.0,0.0038389]
[1735198510947,0.1,97831.0,97829.0,0.0038389]
[1735198511361,0.1,97831.0,97830.0,0.0038389]
[1735198512524,0.1,97831.0,97830.0,0.0058389]
[1735198512902,0.0001716,97838.0,97837.0,0.163537]
[1735198513951,0.0001716,97838.0,97837.0,0.1673759]
[1735198514361,0.0021716,97838.0,97837.0,0.0038389]
[1735198514672,0.0031716,97838.0,97837.0,0.0038389]
[1735198514843,0.0001716,97838.0,97837.0,0.0038389]
[1735198515294,0.1001716,97838.0,97837.0,0.0088389]
[1735198515539,0.1001716,97838.0,97837.0,0.0048389]
[1735198515741,0.4263716,97838.0,97837.0,0.0058389]
[1735198516267,0.4263716,97838.0,97837.0,0.0048389]
[1735198516496,0.4263716,97838.0,97837.0,0.001]
[1735198516709,0.4273716,97838.0,97837.0,0.001]
[1735198517055,0.1,97833.0,97828.0,0.0038389]
[1735198517613,0.1,97833.0,97829.0,0.0038389]
[1735198518226,0.101,97833.0,97830.0,0.0038389]
[1735198518825,0.1,97829.0,97826.0,0.00051817]
[1735198519023,0.1,97827.0,97826.0,0.00051817]
[1735198519502,0.1,97827.0,97826.0,0.00436152]
[1735198520218,0.1,97827.0,97826.0,0.00051817]
[1735198520615,0.101,97827.0,97826.0,0.00051817]
[1735198520821,0.001,97827.0,97826.0,0.00051817]
[1735198521026,0.1,97839.0,97834.0,0.163542]
[1735198521027,0.2263716,97838.0,97834.0,0.163542]
[1735198521431,0.2263716,97838.0,97835.0,0.00384335]
[1735198522222,0.2293716,97838.0,97836.0,0.00384335]
[1735198522995,0.2313716,97838.0,97837.0,0.00384335]
[1735198523322,0.2263716,97838.0,97837.0,0.00384335]
[1735198523742,0.2263716,97838.0,97827.0,0.163554]
[1735198523743,0.1,97803.0,97800.0,0.08277728]
[1735198523963,0.1,97801.0,97800.0,0.08277728]
[1735198524163,0.1252,97802.0,97800.0,0.08277728]
[1735198524390,0.00052109,97803.0,97801.0,0.163597]
[1735198524589,0.049,97819.0,97813.0,0.163577]
[1735198524814,6.922e-05,97819.0,97818.0,0.163569]
[1735198525021,6.922e-05,97819.0,97810.0,0.163582]
[1735198525131,0.1,97816.0,97804.0,0.163592]
[1735198525332,0.1,97816.0,97801.0,0.01033609]
[1735198525597,0.1,97810.0,97803.0,0.163593]
[1735198527154,0.1,97810.0,97809.0,0.163584]
[1735198528798,6.922e-05,97819.0,97816.0,0.163571]
[1735198529255,0.1,97818.0,97816.0,0.163571]
[1735198529613,0.1,97818.0,97814.0,0.163574]
[1735198530859,0.1,97818.0,97814.0,0.329148]
[1735198531063,0.1,97818.0,97814.0,0.327148]
[1735198531497,0.1,97818.0,97814.0,0.329148]
[1735198531681,0.1,97818.0,97814.0,0.327148]
[1735198531882,0.1,97818.0,97814.0,0.333148]
[1735198532086,0.1,97815.0,97814.0,0.169574]
[1735198533855,0.1,97806.0,97800.0,0.24637528]
[1735198534454,0.1,97806.0,97800.0,0.40997328]
[1735198534640,0.1782,97801.0,97800.0,0.24637528]
[1735198535224,0.1782,97801.0,97800.0,0.25537528]
[1735198535570,0.1782,97801.0,97800.0,0.24637528]
[1735198535767,0.1792,97801.0,97800.0,0.25337528]
[1735198535979,0.1792,97801.0,97800.0,0.26737016]
[1735198536313,0.1792,97801.0,97800.0,0.26337016]
[1735198536522,0.1792,97801.0,97800.0,0.26537016]
[1735198537040,0.1792,97801.0,97800.0,0.2593049]
[1735198537440,0.001,97801.0,97800.0,0.36329122]
[1735198537651,0.001,97801.0,97800.0,0.2593049]
[1735198539969,0.001,97801.0,97800.0,0.26545744]
[1735198540549,0.1,97806.0,97803.0,0.163594]
[1735198541158,0.1,97806.0,97805.0,0.16359]
[1735198541860,0.101,97806.0,97805.0,0.17358646]
[1735198542251,0.101,97806.0,97805.0,0.00999646]
[1735198542252,0.43148632,97806.0,97805.0,0.00999646]
[1735198542463,0.2275,97806.0,97805.0,0.00999646]
[1735198543058,0.2265,97806.0,97805.0,0.00384392]
[1735198543515,0.2265,97806.0,97805.0,0.00884392]
[1735198544285,0.2265,97806.0,97805.0,0.00484392]
[1735198544497,0.2265,97806.0,97805.0,0.00884392]
[1735198544703,0.2265,97806.0,97805.0,0.00484392]
[1735198544854,0.2265,97806.0,97805.0,0.00384392]
[1735198545064,0.2275,97806.0,97805.0,0.00484392]
[1735198545646,0.2275,97806.0,97805.0,0.00384392]
[1735198545973,0.2285,97806.0,97805.0,0.00999764]
[1735198546398,0.2275,97806.0,97805.0,0.00999764]
[1735198547002,0.2275,97806.0,97805.0,0.01099764]
[1735198547366,0.22432823,97806.0,97805.0,0.01099764]
[1735198547571,0.22432823,97806.0,97805.0,0.00999764]
[1735198547790,0.001,97806.0,97805.0,0.00999764]
[1735198548003,0.0783,97816.0,97815.0,0.163574]
[1735198548206,0.17512823,97816.0,97815.0,0.163574]
[1735198548637,0.17512823,97816.0,97815.0,0.17357164]
[1735198548835,0.17512823,97816.0,97815.0,0.163574]
[1735198549058,0.17712823,97816.0,97815.0,0.163574]
[1735198549269,0.17712823,97816.0,97796.0,0.1784827]
[1735198549270,0.09682823,97801.0,97796.0,0.0148777]
[1735198549483,0.17512823,97801.0,97798.0,0.163671]
[1735198549924,0.17512823,97801.0,97800.0,0.08670782]
[1735198551211,0.0783,97801.0,97800.0,0.08970782]
[1735198551415,0.09682823,97805.0,97801.0,0.327194]
[1735198552169,0.09682823,97805.0,97803.0,0.163594]
[1735198552602,0.09682823,97805.0,97804.0,0.00384484]
[1735198554010,0.09682823,97805.0,97804.0,0.00584484]
[1735198554632,0.09682823,97810.0,97804.0,0.00584484]
[1735198554871,0.09682823,97805.0,97804.0,0.00584484]
[1735198555074,0.09810638,97805.0,97804.0,0.00584484]
[1735198555967,0.09810638,97805.0,97804.0,0.00384484]
[1735198556170,0.09810638,97805.0,97800.0,0.08286298]
[1735198556471,0.09682823,97801.0,97800.0,0.08286298]
[1735198556945,0.09682823,97801.0,97800.0,0.08671104]
[1735198557548,0.09782823,97801.0,97800.0,0.08671104]
[1735198558351,0.22262823,97801.0,97800.0,0.08671104]
[1735198558963,0.22362823,97801.0,97800.0,0.08671104]
[1735198562806,0.22362823,97801.0,97800.0,0.09287055]
[1735198564239,0.22362823,97801.0,97800.0,0.08671104]
[1735198566705,0.32761455,97801.0,97800.0,0.08671104]
[1735198566908,0.32661455,97801.0,97800.0,0.08671104]
[1735198567125,0.32661455,97801.0,97800.0,0.08771104]
[1735198567298,0.32561455,97801.0,97800.0,0.08771104]
[1735198567505,0.32561455,97801.0,97800.0,0.08671104]
[1735198568674,0.32761455,97801.0,97800.0,0.08671104]
[1735198569075,0.32761455,97801.0,97800.0,0.08286298]
[1735198569648,0.22362823,97801.0,97800.0,0.08286298]
[1735198569853,0.17752823,97801.0,97800.0,0.08286298]
[1735198570399,0.17652823,97801.0,97800.0,0.08286298]
[1735198570636,0.0911771,97803.0,97801.0,0.163597]
[1735198570807,0.09682823,97805.0,97802.0,0.163595]
[1735198571042,0.09682823,97805.0,97802.0,0.32719]
[1735198571221,0.09682823,97805.0,97803.0,0.00385042]
[1735198571381,0.09682823,97805.0,97804.0,0.163592]
[1735198571785,0.09682823,97805.0,97804.0,0.16744242]
[1735198572894,0.09682823,97805.0,97804.0,0.16944242]
[1735198573243,0.09682823,97805.0,97804.0,0.16744242]
[1735198573455,0.0001714,97806.0,97804.0,0.17044242]
[1735198573667,0.09682823,97805.0,97804.0,0.17044242]
[1735198573867,0.0001714,97806.0,97804.0,0.17044242]
[1735198573868,0.0001714,97806.0,97804.0,0.17144242]
[1735198574462,0.0001714,97806.0,97805.0,0.00385042]
[1735198574668,0.08321956,97813.0,97806.0,0.163589]
[1735198574917,0.18021919,97818.0,97805.0,0.00385042]
[1735198575051,0.09682823,97813.0,97812.0,0.163578]
[1735198575254,0.09682823,97813.0,97812.0,0.327157]
[1735198575461,0.18021919,97818.0,97812.0,0.327157]
[1735198575669,0.09682823,97814.0,97813.0,0.163577]
[1735198576151,0.09682823,97816.0,97813.0,0.33100442]
[1735198576353,0.09682823,97816.0,97813.0,0.16742742]
[1735198576701,0.09682823,97816.0,97815.0,0.163574]
[1735198577331,0.09682823,97816.0,97815.0,0.16742442]
[1735198577528,0.09782823,97816.0,97815.0,0.16742442]
[1735198578159,0.09682823,97816.0,97815.0,0.16742442]
[1735198578533,0.09782823,97816.0,97815.0,0.16742442]
[1735198578734,0.09882823,97816.0,97815.0,0.16742442]
[1735198579422,0.09782823,97816.0,97815.0,0.17358083]
[1735198579626,0.09682823,97816.0,97815.0,0.17358083]
[1735198579847,0.001,97816.0,97815.0,0.17358083]
[1735198580150,0.002,97816.0,97815.0,0.17358083]
[1735198580354,0.09882823,97816.0,97815.0,0.17358083]
[1735198580614,0.001,97816.0,97815.0,0.17358083]
[1735198580952,0.0001714,97818.0,97815.0,0.17358083]
[1735198581161,0.001,97816.0,97815.0,0.163574]
[1735198581364,0.09782823,97816.0,97815.0,0.163574]
[1735198581569,0.09682823,97816.0,97815.0,0.163574]
[1735198581770,0.09682823,97814.0,97813.0,0.163577]
[1735198581978,0.09682823,97810.0,97800.0,0.08286298]
[1735198582297,0.00127795,97815.0,97800.0,0.08286298]
[1735198582298,0.09682823,97808.0,97800.0,0.08286298]
[1735198582455,0.09682823,97808.0,97806.0,0.163588]
[1735198583068,0.09682823,97808.0,97807.0,0.00384636]
[1735198583942,0.09782823,97810.0,97808.0,0.163585]
[1735198584187,0.09682823,97809.0,97808.0,0.163585]
[1735198585203,0.09682823,97809.0,97808.0,0.16743118]
[1735198585914,0.09682823,97809.0,97808.0,0.16843118]
[1735198586533,0.09682823,97811.0,97808.0,0.16843118]
[1735198586671,0.09682823,97809.0,97808.0,0.16843118]
[1735198586876,0.09682823,97811.0,97808.0,0.33101618]
[1735198587081,0.001,97809.0,97808.0,0.33101618]
[1735198587446,0.001,97809.0,97808.0,0.33713963]
[1735198587614,0.09682823,97811.0,97808.0,0.33713963]
[1735198587821,0.001,97809.0,97808.0,0.33713963]
[1735198588243,0.001,97809.0,97808.0,0.34113963]
[1735198588609,0.001,97809.0,97808.0,0.33713963]
[1735198588822,0.001,97809.0,97808.0,0.33913963]
[1735198589226,0.09125222,97815.0,97808.0,0.17555463]
[1735198589437,0.09125222,97815.0,97814.0,0.163575]
[1735198589438,0.18808045,97815.0,97814.0,0.163575]
[1735198590298,0.18808045,97815.0,97814.0,0.16742118]
[1735198590509,0.09682823,97815.0,97814.0,0.16742118]
[1735198591073,0.09782823,97815.0,97814.0,0.16742118]
[1735198591625,0.09982823,97815.0,97814.0,0.16742118]
[1735198592049,0.003,97815.0,97814.0,0.16742118]
[1735198592196,0.09982823,97815.0,97814.0,0.16742118]
[1735198592397,0.003,97815.0,97814.0,0.17354552]
[1735198592844,0.002,97815.0,97814.0,0.17354552]
[1735198593248,0.17272823,97801.0,97800.0,0.08286298]
[1735198593394,0.32541455,97801.0,97800.0,0.08286298]
[1735198593595,0.22142823,97801.0,97800.0,0.08286298]
[1735198594162,0.32541455,97801.0,97800.0,0.08286298]
[1735198594565,0.32841455,97801.0,97800.0,0.08286298]
[1735198595032,0.42166677,97801.0,97800.0,0.08286298]
[1735198596112,0.46661788,97801.0,97800.0,0.08286298]
[1735198597260,0.33041455,97801.0,97800.0,0.08286298]
[1735198600111,0.46661788,97801.0,97800.0,0.08286298]
[1735198601024,0.17772823,97801.0,97800.0,0.08286298]
[1735198601834,0.10182823,97801.0,97800.0,0.08286298]
[1735198603305,0.005,97801.0,97800.0,0.08286298]
[1735198603986,0.003,97801.0,97800.0,0.08286298]
[1735198604194,0.09682823,97809.0,97800.0,0.08486298]
[1735198604479,0.09121402,97812.0,97808.0,0.163585]
[1735198604827,0.09699963,97818.0,97815.0,0.163574]
[1735198605714,0.09699963,97818.0,97815.0,0.16739947]
[1735198606608,0.0021714,97816.0,97815.0,0.16739947]
[1735198607110,0.0041714,97816.0,97815.0,0.16739947]
[1735198607932,0.0021714,97816.0,97815.0,0.16739947]
[1735198609349,0.0001714,97816.0,97815.0,0.16739947]
[1735198609556,0.0001714,97816.0,97815.0,0.16839947]
[1735198609985,0.0001714,97816.0,97815.0,0.16739947]
[1735198610163,0.0001714,97816.0,97815.0,0.16839947]
[1735198614541,0.0001714,97816.0,97815.0,0.16739947]
[1735198615316,0.0001714,97816.0,97815.0,0.16839947]
[1735198615876,2e-08,97819.0,97817.0,0.16357]
[1735198616016,2e-08,97819.0,97818.0,0.14598632]
[1735198616833,0.07077104,97833.0,97832.0,0.163545]
[1735198617133,6.391e-05,97833.0,97832.0,0.26753132]
[1735198617562,6.391e-05,97833.0,97832.0,0.27135679]
[1735198618284,9.1e-07,97833.0,97832.0,0.27135679]
[1735198618499,9.1e-07,97833.0,97832.0,0.32195679]
[1735198618841,9.1e-07,97833.0,97832.0,0.32395679]
[1735198619270,9.1e-07,97833.0,97832.0,0.32195679]
[1735198619671,9.1e-07,97833.0,97832.0,0.33295679]
[1735198619870,9.1e-07,97833.0,97832.0,0.32495679]
[1735198620280,9.1e-07,97833.0,97832.0,0.33295679]
[1735198621081,5.1e-07,97838.0,97837.0,0.163537]
[1735198621286,7.1e-07,97852.0,97843.0,0.00317177]
[1735198621465,0.09682823,97873.0,97849.0,0.163517]
[1735198621669,0.09682823,97873.0,97872.0,0.163478]
[1735198622636,0.07805633,97875.0,97872.0,0.326956]
[1735198623150,0.07805633,97875.0,97872.0,0.328956]
[1735198623417,0.00015633,97875.0,97873.0,0.00382547]
[1735198623618,0.00015633,97875.0,97874.0,0.163475]
[1735198624268,0.00015633,97875.0,97874.0,0.26746132]
[1735198624819,0.00015633,97875.0,97874.0,0.27128679]
[1735198624953,3.3e-07,97875.0,97874.0,0.47505856]
[1735198625496,3.3e-07,97875.0,97874.0,0.47909027]
[1735198625868,3.3e-07,97875.0,97874.0,0.48009027]
[1735198626076,3.3e-07,97875.0,97874.0,0.57909027]
[1735198626287,0.0001714,97904.0,97903.0,0.163427]
[1735198626486,0.00069231,97904.0,97903.0,0.26741332]
[1735198626700,3.1e-07,97904.0,97903.0,0.41741332]
[1735198627115,3.1e-07,97904.0,97903.0,0.42121185]
[1735198627538,3.1e-07,97904.0,97903.0,0.47181185]
[1735198628483,7.1e-07,97906.0,97903.0,0.47498362]
[1735198628788,8.9e-07,97906.0,97905.0,0.25317177]
[1735198629151,8.9e-07,97906.0,97905.0,0.35715809]
[1735198629329,8.9e-07,97906.0,97905.0,0.39871727]
[1735198629486,8.9e-07,97906.0,97905.0,0.37719214]
[1735198629709,8.9e-07,97906.0,97905.0,0.38099067]
[1735198630107,8.9e-07,97906.0,97905.0,0.38599067]
[1735198630315,8.9e-07,97906.0,97905.0,0.39499067]
[1735198630536,8.9e-07,97906.0,97905.0,0.38599067]
[1735198630967,8.9e-07,97906.0,97905.0,0.39499067]
[1735198631392,8.9e-07,97906.0,97905.0,0.1368189]
[1735198631596,0.00100089,97906.0,97905.0,0.01879853]
[1735198632009,0.00100089,97906.0,97905.0,0.006]
[1735198632221,0.0991059,97906.0,97905.0,0.006]
[1735198632416,0.1991059,97906.0,97905.0,0.015]
[1735198632632,0.1991059,97906.0,97860.0,0.163498]
[1735198632633,0.1,97902.0,97891.0,0.163447]
[1735198632831,0.12135032,97901.0,97891.0,0.163447]
[1735198633260,0.09682823,97886.0,97880.0,0.163464]
[1735198633395,0.09682823,97881.0,97880.0,0.163464]
[1735198635505,0.09682823,97881.0,97880.0,0.164464]
[1735198635885,0.09682823,97881.0,97880.0,0.166464]
[1735198636095,0.09682823,97881.0,97880.0,0.163464]
[1735198636302,0.09882823,97881.0,97880.0,0.163464]
[1735198636511,0.09882823,97881.0,97880.0,0.166464]
[1735198636735,0.09882823,97881.0,97880.0,0.163464]
[1735198638160,0.09682823,97881.0,97880.0,0.163464]
[1735198638388,0.09982823,97881.0,97880.0,0.163464]
[1735198638870,0.09882823,97881.0,97880.0,0.163464]
[1735198639286,0.10082823,97881.0,97880.0,0.163464]
[1735198639633,0.004,97881.0,97880.0,0.163464]
[1735198640173,0.10082823,97881.0,97880.0,0.163464]
[1735198640909,0.004,97881.0,97880.0,0.163464]
[1735198645339,0.004,97881.0,97880.0,0.1672529]
[1735198646387,0.0041714,97881.0,97880.0,0.1672529]
[1735198646612,0.0021714,97881.0,97880.0,0.1672529]
[1735198646978,0.0021714,97881.0,97880.0,0.1682529]
[1735198647548,0.0001714,97881.0,97880.0,0.1682529]
[1735198647972,0.0001714,97881.0,97880.0,0.1712529]
[1735198648306,0.0001714,97881.0,97880.0,0.1672529]
[1735198648483,0.0001714,97881.0,97880.0,0.1712529]
[1735198648990,0.0001714,97881.0,97880.0,0.1702529]
[1735198649265,0.0001714,97881.0,97880.0,0.1712529]
[1735198650105,0.0501714,97881.0,97880.0,0.1712529]
[1735198651366,0.0501714,97881.0,97880.0,0.167464]
[1735198653077,0.0501714,97881.0,97880.0,0.27145032]
[1735198655986,0.0501714,97881.0,97880.0,0.279295]
[1735198658668,0.0501714,97881.0,97880.0,0.2793807]
[1735198659711,0.27079963,97881.0,97880.0,0.1675497]
[1735198660703,0.27079963,97881.0,97880.0,0.1665497]
[1735198661105,0.27079963,97881.0,97880.0,0.1645497]
[1735198661323,0.27079963,97881.0,97880.0,0.1675497]
[1735198661521,0.27079963,97881.0,97880.0,0.1665497]
[1735198661718,0.27079963,97881.0,97880.0,0.1635497]
[1735198661948,0.27379963,97881.0,97880.0,0.1635497]
[1735198662509,0.27579963,97881.0,97880.0,8.57e-05]
[1735198662719,0.37579963,97881.0,97880.0,8.57e-05]
[1735198663183,0.17822823,97862.0,97830.0,0.12007337]
[1735198663390,0.17822823,97862.0,97817.0,0.0507]
[1735198663391,0.09682823,97854.0,97853.0,0.16351]
[1735198664027,0.09682823,97856.0,97853.0,0.32702]
[1735198664630,0.09682823,97856.0,97853.0,0.32754091]
[1735198665285,0.001,97854.0,97853.0,0.16403091]
[1735198665490,0.09682823,97854.0,97853.0,0.16403091]
[1735198666932,0.00227741,97856.0,97853.0,0.16403091]
[1735198667147,0.0814,97862.0,97861.0,0.163497]
[1735198668530,0.0854,97862.0,97861.0,0.163497]
[1735198670731,0.0884,97862.0,97861.0,0.163497]
[1735198672561,0.007,97862.0,97861.0,0.163497]
[1735198673216,0.007,97862.0,97861.0,0.26748332]
[1735198673572,0.004,97862.0,97861.0,0.28761013]
[1735198673785,0.0009926,97873.0,97872.0,0.163478]
[1735198673990,0.0009926,97873.0,97872.0,0.26746432]
[1735198674148,0.1306714,97881.0,97879.0,0.163467]
[1735198675531,0.0011714,97880.0,97879.0,0.163467]
[1735198675743,0.0021714,97880.0,97879.0,0.163467]
[1735198676730,0.0021714,97880.0,97879.0,0.26745332]
[1735198677625,0.0001714,97880.0,97879.0,0.26745332]
[1735198677957,0.0011714,97880.0,97879.0,0.27745332]
[1735198678166,0.0011714,97880.0,97879.0,0.27045332]
[1735198678167,0.0001714,97880.0,97879.0,0.27045332]
[1735198678378,0.0001714,97880.0,97879.0,0.26745332]
[1735198678755,0.0001714,97880.0,97879.0,0.27045332]
[1735198678975,0.0011714,97880.0,97879.0,0.27745332]
[1735198679588,4e-07,97880.0,97879.0,0.27745332]
[1735198680030,4e-07,97880.0,97879.0,0.27445332]
[1735198680204,0.0501714,97881.0,97879.0,0.26745332]
[1735198680411,0.0501714,97881.0,97880.0,0.10398632]
[1735198682080,0.0501714,97881.0,97880.0,0.10698632]
[1735198682282,0.0501714,97881.0,97880.0,0.11398632]
[1735198682283,0.0511714,97881.0,97880.0,0.11398632]
[1735198683304,0.0501714,97881.0,97880.0,0.10398632]
[1735198683499,0.0501714,97881.0,97880.0,0.10798632]
[1735198684112,0.0511714,97881.0,97880.0,0.11698632]
[1735198684363,0.0501714,97881.0,97880.0,0.10398632]
[1735198684736,0.0511714,97881.0,97880.0,0.11798632]
[1735198684914,0.0511714,97881.0,97880.0,0.10898632]
[1735198685115,0.0511714,97881.0,97880.0,0.10398632]
[1735198685318,0.0521714,97881.0,97880.0,0.11198632]
[1735198686259,0.0113054,97881.0,97880.0,0.11198632]
[1735198686502,0.0009876,97892.0,97891.0,0.163447]
[1735198686711,0.0009876,97892.0,97891.0,0.26743332]
[1735198686918,0.0766,97911.0,97905.0,0.163423]
[1735198687111,0.0775866,97911.0,97905.0,0.26740932]
[1735198687312,0.09699963,97906.0,97905.0,0.163423]
[1735198687758,0.27359963,97906.0,97905.0,0.163423]
[1735198687888,0.09682823,97900.0,97897.0,0.163436]